bitfinex-derivatives/quotes_BTCF0:USTF0_20251207
["timestamp","ask_amount","ask_price","bid_price","bid_amount"]
[1765150802567,0.0585567,89982.0,89981.0,0.03429]
[1765150802765,0.0555567,89982.0,89981.0,0.02729]
[1765150802964,0.0585567,89982.0,89981.0,0.06281]
[1765150803262,0.0585567,89982.0,89981.0,0.006]
[1765150803464,0.05712,89974.0,89973.0,0.07542]
[1765150805562,0.06012,89974.0,89973.0,0.08242]
[1765150806070,0.003,89974.0,89973.0,0.08242]
[1765150806670,0.03192,89974.0,89973.0,0.08242]
[1765150807066,0.06012,89974.0,89973.0,0.08242]
[1765150807568,0.06012,89974.0,89973.0,0.03635]
[1765150808070,0.06012,89974.0,89973.0,0.06587]
[1765150809872,0.06012,89974.0,89973.0,0.03635]
[1765150810068,0.06012,89974.0,89973.0,0.007]
[1765150812872,0.06012,89974.0,89973.0,0.06541]
[1765150814471,0.003,89974.0,89973.0,0.06541]
[1765150814863,0.0001667,89982.0,89981.0,0.0700625]
[1765150816170,0.0011667,89982.0,89981.0,0.0730625]
[1765150816371,0.0041667,89982.0,89981.0,0.0730625]
[1765150817478,0.0031667,89982.0,89981.0,0.0730625]
[1765150818180,0.0031667,89982.0,89981.0,0.0700625]
[1765150818181,0.0001667,89982.0,89981.0,0.0700625]
[1765150818371,0.0031667,89982.0,89981.0,0.0790625]
[1765150821685,0.0031667,89982.0,89981.0,0.06795]
[1765150824377,0.0615267,89982.0,89981.0,0.06795]
[1765150824578,0.0615267,89982.0,89981.0,0.03889]
[1765150824771,0.0615267,89982.0,89981.0,0.009]
[1765150825287,0.0615267,89982.0,89981.0,0.03889]
[1765150825683,0.0615267,89982.0,89981.0,0.009]
[1765150826182,0.05836,89969.0,89968.0,0.05895]
[1765150826386,0.05836,89966.0,89965.0,0.0300567]
[1765150826780,0.05836,89966.0,89965.0,0.0591167]
[1765150827983,0.05836,89966.0,89965.0,0.0751167]
[1765150827984,0.06236,89966.0,89965.0,0.0751167]
[1765150828477,0.06136,89966.0,89965.0,0.0721167]
[1765150829188,0.06136,89966.0,89965.0,0.0131667]
[1765150829686,0.06136,89966.0,89965.0,0.0141667]
[1765150829887,0.06136,89966.0,89965.0,0.0440567]
[1765150830183,0.06136,89966.0,89965.0,0.0731167]
[1765150832686,0.003,89966.0,89965.0,0.0731167]
[1765150833577,0.06136,89966.0,89965.0,0.0731167]
[1765150835794,0.003,89966.0,89965.0,0.0731167]
[1765150838886,0.03291,89966.0,89965.0,0.0731167]
[1765150839289,0.003,89966.0,89965.0,0.0731167]
[1765150840279,0.03291,89966.0,89965.0,0.0731167]
[1765150840488,0.06136,89966.0,89965.0,0.0731167]
[1765150841389,0.03291,89966.0,89965.0,0.0731167]
[1765150841791,0.0440244,89966.0,89965.0,0.0731167]
[1765150842990,0.0141144,89966.0,89965.0,0.0731167]
[1765150843387,0.003,89966.0,89965.0,0.0731167]
[1765150845193,0.06009,89966.0,89965.0,0.0141667]
[1765150845679,0.06009,89966.0,89965.0,0.0722567]
[1765150846594,0.06009,89966.0,89965.0,0.0141667]
[1765150847179,0.06009,89966.0,89950.0,0.01655]
[1765150847397,0.0682062,89951.0,89950.0,0.02992]
[1765150847593,0.068207,89945.0,89944.0,0.07464]
[1765150848191,0.068208,89937.0,89936.0,0.07436]
[1765150848389,0.068208,89937.0,89936.0,0.0745267]
[1765150848584,0.068208,89937.0,89936.0,0.0582567]
[1765150849187,0.069208,89937.0,89936.0,0.0582567]
[1765150849585,0.069208,89937.0,89936.0,0.0300867]
[1765150849791,0.104208,89937.0,89936.0,0.0582567]
[1765150849997,0.109208,89937.0,89936.0,0.0745267]
[1765150851498,0.110208,89937.0,89936.0,0.0745267]
[1765150851991,0.054118,89937.0,89936.0,0.0745267]
[1765150852193,0.075918,89937.0,89936.0,0.0745267]
[1765150852391,0.075208,89937.0,89936.0,0.0745267]
[1765150852602,0.111208,89937.0,89936.0,0.0582567]
[1765150853089,0.075918,89937.0,89936.0,0.0745267]
[1765150853289,0.104208,89937.0,89936.0,0.0745267]
[1765150853691,0.108208,89937.0,89936.0,0.0745267]
[1765150854496,0.103208,89937.0,89936.0,0.0745267]
[1765150854703,0.109208,89937.0,89936.0,0.0745267]
[1765150855401,0.108208,89937.0,89936.0,0.0745267]
[1765150856100,0.109208,89937.0,89936.0,0.0745267]
[1765150856893,0.074208,89937.0,89936.0,0.0745267]
[1765150857094,0.109208,89937.0,89936.0,0.0745267]
[1765150857499,0.103208,89937.0,89936.0,0.0745267]
[1765150857696,0.109208,89937.0,89936.0,0.0745267]
[1765150858904,0.074918,89937.0,89936.0,0.0745267]
[1765150859091,0.080918,89937.0,89936.0,0.0745267]
[1765150859904,0.041,89937.0,89936.0,0.0745267]
[1765150860201,0.0955,89937.0,89936.0,0.0745267]
[1765150860403,0.06614,89937.0,89936.0,0.0745267]
[1765150860702,0.037,89937.0,89936.0,0.0745267]
[1765150861308,0.06614,89937.0,89936.0,0.0745267]
[1765150861512,0.0905,89937.0,89936.0,0.0582567]
[1765150861699,0.0885,89937.0,89936.0,0.0582567]
[1765150862202,0.0875,89937.0,89936.0,0.0582567]
[1765150862406,0.0875,89937.0,89936.0,0.0001667]
[1765150862407,0.0885,89937.0,89936.0,0.0001667]
[1765150862793,0.0765,89937.0,89936.0,0.0001667]
[1765150863292,0.0595,89937.0,89936.0,0.0001667]
[1765150863496,0.0945,89937.0,89936.0,0.0591267]
[1765150863705,0.0935,89937.0,89936.0,0.0591267]
[1765150863904,0.0945,89937.0,89936.0,0.0591267]
[1765150864408,0.0945,89937.0,89936.0,0.0001667]
[1765150864604,0.0995,89937.0,89936.0,0.0001667]
[1765150865206,0.0111191,89928.0,89915.0,0.02996]
[1765150865398,0.0696206,89916.0,89915.0,0.05896]
[1765150865605,0.0696214,89909.0,89908.0,0.05896]
[1765150866014,0.0696214,89909.0,89901.0,0.07681]
[1765150866015,0.0696223,89902.0,89901.0,0.07681]
[1765150866327,0.0696223,89902.0,89901.0,0.02996]
[1765150866627,0.0585,89895.0,89894.0,0.07681]
[1765150866924,0.1167728,89904.0,89903.0,0.05896]
[1765150867120,0.0402616,89908.0,89907.0,0.05896]
[1765150867919,0.01,89909.0,89907.0,0.05896]
[1765150868125,0.03914,89909.0,89908.0,0.05896]
[1765150868312,0.02914,89909.0,89908.0,0.05896]
[1765150868718,0.0585,89909.0,89908.0,0.05896]
[1765150868928,0.0715,89909.0,89908.0,0.05896]
[1765150869239,0.0715,89909.0,89907.0,0.001]
[1765150869240,0.0696215,89908.0,89907.0,0.001]
[1765150869424,0.0585,89895.0,89894.0,0.07681]
[1765150869732,0.0696231,89896.0,89895.0,0.05896]
[1765150869930,0.0585,89896.0,89895.0,0.05896]
[1765150871036,0.0585,89896.0,89895.0,0.06496]
[1765150871622,0.0665,89896.0,89895.0,0.06496]
[1765150875027,0.03714,89896.0,89895.0,0.06496]
[1765150875230,0.008,89896.0,89895.0,0.06496]
[1765150875624,0.06385,89896.0,89895.0,0.06496]
[1765150881427,0.06385,89896.0,89895.0,0.006]
[1765150881626,0.0669739,89889.0,89888.0,0.00013479]
[1765150882038,0.074973,89896.0,89895.0,0.05696]
[1765150882835,0.06385,89896.0,89895.0,0.05696]
[1765150883340,0.06385,89896.0,89888.0,0.00213479]
[1765150883341,0.0669739,89889.0,89888.0,0.05909479]
[1765150883531,0.0669739,89889.0,89888.0,0.05709479]
[1765150884935,0.0799739,89889.0,89888.0,0.05809479]
[1765150885837,0.013,89889.0,89888.0,0.05809479]
[1765150908351,0.06877,89889.0,89888.0,0.05809479]
[1765150910854,0.013,89889.0,89888.0,0.05809479]
[1765150912645,0.15972588,89900.0,89899.0,0.05919]
[1765150912853,0.0398121,89904.0,89898.0,0.01683]
[1765150913157,0.14860328,89909.0,89906.0,0.05919]
[1765150913158,0.02869,89907.0,89906.0,0.05919]
[1765150913763,0.02869,89909.0,89908.0,0.05919]
[1765150913952,0.05577,89909.0,89908.0,0.05919]
[1765150914566,0.0001668,89910.0,89909.0,0.0703114]
[1765150915650,0.0351668,89910.0,89909.0,0.0703114]
[1765150916062,0.0001668,89910.0,89909.0,0.0703114]
[1765150916248,0.0041668,89910.0,89909.0,0.0743114]
[1765150917154,0.0041668,89910.0,89909.0,0.11408296]
[1765150917462,0.0041668,89910.0,89909.0,0.0743114]
[1765150918160,0.0001668,89910.0,89909.0,0.0713114]
[1765150918458,0.0041668,89910.0,89909.0,0.0743114]
[1765150920564,0.0614368,89910.0,89909.0,0.0743114]
[1765150921046,0.0041668,89910.0,89909.0,0.0743114]
[1765150921853,0.0041668,89910.0,89909.0,0.06319]
[1765150922069,0.0614368,89910.0,89909.0,0.06319]
[1765150922362,0.0614368,89910.0,89909.0,0.03358]
[1765150922664,0.0614368,89910.0,89909.0,0.06096]
[1765150924352,0.0041668,89910.0,89909.0,0.06096]
[1765150924956,0.0683885,89933.0,89932.0,0.05673]
[1765150925360,0.0408585,89933.0,89932.0,0.05673]
[1765150925557,0.02974,89933.0,89932.0,0.05673]
[1765150925957,0.05727,89937.0,89936.0,0.07455]
[1765150926474,0.0001668,89941.0,89940.0,0.05673]
[1765150926861,0.0574368,89941.0,89940.0,0.05673]
[1765150927171,0.0299068,89941.0,89940.0,0.05673]
[1765150927360,0.0001668,89941.0,89940.0,0.05673]
[1765150927859,0.0111668,89941.0,89940.0,0.05773]
[1765150928067,0.0441668,89941.0,89940.0,0.05873]
[1765150929173,0.1014368,89941.0,89940.0,0.002]
[1765150933867,0.05509,89925.0,89924.0,0.0001668]
[1765150934064,0.0662094,89925.0,89924.0,0.0001668]
[1765150934470,0.0662094,89925.0,89924.0,0.0584268]
[1765150934867,0.02777,89930.0,89929.0,0.0758]
[1765150935069,0.15551431,89934.0,89933.0,0.05826]
[1765150935269,0.0662078,89939.0,89938.0,0.05826]
[1765150935676,0.0001668,89941.0,89940.0,0.05826]
[1765150937089,0.0321668,89941.0,89940.0,0.06026]
[1765150937989,0.0441668,89941.0,89940.0,0.06126]
[1765150940491,0.0719368,89941.0,89940.0,0.06126]
[1765150941297,0.0441668,89941.0,89940.0,0.06126]
[1765150943099,0.0719368,89941.0,89940.0,0.06126]
[1765150945301,0.0441668,89941.0,89940.0,0.06126]
[1765150945494,0.0719368,89941.0,89940.0,0.06126]
[1765150945894,0.0830543,89941.0,89940.0,0.06126]
[1765150946591,0.1103743,89941.0,89940.0,0.003]
[1765150947305,0.0662094,89925.0,89924.0,0.0001668]
[1765150947603,0.0662094,89925.0,89924.0,0.0584268]
[1765150947798,0.0662094,89925.0,89924.0,0.0001668]
[1765150948298,0.05509,89905.0,89904.0,0.05826]
[1765150950101,0.05909,89905.0,89904.0,0.06426]
[1765150950505,0.05909,89905.0,89904.0,0.06626]
[1765150951801,0.004,89905.0,89904.0,0.06626]
[1765150954009,0.0001668,89913.0,89912.0,0.0758]
[1765150954398,0.0001668,89913.0,89912.0,0.086921]
[1765150955508,0.0111191,89928.0,89927.0,0.05826]
[1765150955803,0.0662091,89928.0,89927.0,0.05826]
[1765150956401,0.0662091,89928.0,89927.0,0.02882]
[1765150956720,0.0662099,89921.0,89920.0,0.0758]
[1765150956903,0.05509,89921.0,89920.0,0.0758]
[1765150957912,0.02777,89921.0,89920.0,0.0758]
[1765150958113,0.02877,89921.0,89920.0,0.0758]
[1765150958501,0.02877,89921.0,89920.0,0.0818]
[1765150958707,0.03177,89921.0,89920.0,0.0818]
[1765150959216,0.05909,89921.0,89920.0,0.0818]
[1765150959604,0.004,89921.0,89920.0,0.0818]
[1765150959804,0.05909,89921.0,89920.0,0.0818]
[1765150960500,0.004,89921.0,89920.0,0.0818]
[1765150966814,0.0111185,89933.0,89930.0,0.0111188]
[1765150967010,0.0111185,89933.0,89932.0,0.05821]
[1765150967511,0.0112849,89936.0,89935.0,0.0693282]
[1765150968919,0.0281668,89936.0,89935.0,0.0713282]
[1765150969920,0.0391668,89936.0,89935.0,0.0723282]
[1765150973826,0.0111163,89951.0,89950.0,0.06882]
[1765150974122,0.0406958,89955.0,89951.0,0.0111162]
[1765150974324,0.0406958,89955.0,89954.0,0.05821]
[1765150974624,0.0691358,89955.0,89954.0,0.05821]
[1765150975625,0.1021358,89955.0,89954.0,0.06121]
[1765150976326,0.1131358,89955.0,89954.0,0.004]
[1765150978428,0.0678767,89947.0,89946.0,0.0001668]
[1765150979526,0.0778767,89947.0,89946.0,0.0011668]
[1765150980028,0.0808767,89947.0,89946.0,0.0021668]
[1765150981820,0.0808767,89947.0,89946.0,0.0315368]
[1765150982026,0.0808767,89947.0,89946.0,0.0591468]
[1765150982728,0.04112,89947.0,89946.0,0.0591468]
[1765150983222,0.013,89947.0,89946.0,0.0591468]
[1765150985422,0.0808767,89947.0,89946.0,0.0021668]
[1765150989230,0.06976,89947.0,89946.0,0.0591468]
[1765150990033,0.013,89947.0,89946.0,0.0591468]
[1765150993542,0.04285,89947.0,89946.0,0.0591468]
[1765150994332,0.013,89947.0,89946.0,0.0591468]
[1765150995547,0.01,89947.0,89946.0,0.0581468]
[1765150995846,0.04285,89947.0,89946.0,0.0881468]
[1765150996438,0.03285,89947.0,89946.0,0.0881468]
[1765150998951,0.06,89947.0,89946.0,0.0881468]
[1765151001252,0.03285,89947.0,89946.0,0.0881468]
[1765151004354,0.003,89947.0,89946.0,0.0881468]
[1765151005054,0.003,89947.0,89946.0,0.12791836]
[1765151005453,0.0411316,89963.0,89962.0,0.057]
[1765151005649,0.0300168,89963.0,89962.0,0.0681149]
[1765151006645,0.0091668,89963.0,89962.0,0.0681149]
[1765151006852,0.0390168,89963.0,89962.0,0.0681149]
[1765151007856,0.0390168,89963.0,89962.0,0.0691149]
[1765151008156,0.0091668,89963.0,89962.0,0.0691149]
[1765151008362,0.0390168,89963.0,89962.0,0.0691149]
[1765151009358,0.0661668,89963.0,89962.0,0.0691149]
[1765151010353,0.0661668,89963.0,89962.0,0.058]
[1765151010556,0.0661668,89963.0,89962.0,0.001]
[1765151010757,0.0661668,89963.0,89962.0,0.03098]
[1765151010963,0.0661668,89963.0,89962.0,0.058]
[1765151013759,0.0091668,89963.0,89962.0,0.058]
[1765151013949,0.0661668,89963.0,89962.0,0.058]
[1765151022076,0.0091668,89963.0,89962.0,0.058]
[1765151028272,0.0657068,89963.0,89962.0,0.058]
[1765151028878,0.0384868,89963.0,89962.0,0.058]
[1765151029374,0.0091668,89963.0,89962.0,0.058]
[1765151030565,0.0384868,89963.0,89962.0,0.058]
[1765151030769,0.0657068,89963.0,89962.0,0.058]
[1765151033372,0.0657068,89963.0,89962.0,0.09774]
[1765151034378,0.0657068,89963.0,89962.0,0.058]
[1765151034773,0.0091668,89963.0,89962.0,0.058]
[1765151036272,0.14181462,89980.0,89979.0,0.05871]
[1765151036477,0.0676527,89980.0,89979.0,0.05871]
[1765151037385,0.0706527,89980.0,89979.0,0.09371]
[1765151038473,0.0706527,89980.0,89979.0,0.035]
[1765151039379,0.0676527,89980.0,89979.0,0.003]
[1765151039577,0.0676527,89980.0,89979.0,0.034]
[1765151039578,0.0706527,89980.0,89979.0,0.034]
[1765151040183,0.0673334,89974.0,89973.0,0.02985069]
[1765151040381,0.0673334,89974.0,89973.0,0.05966069]
[1765151040685,0.05622,89974.0,89973.0,0.08748069]
[1765151041485,0.05622,89974.0,89973.0,0.02985069]
[1765151041787,0.05622,89972.0,89971.0,0.0001668]
[1765151042282,0.05622,89972.0,89971.0,0.03001749]
[1765151042483,0.05622,89972.0,89971.0,0.08764749]
[1765151042788,0.05622,89972.0,89971.0,0.0577968]
[1765151042976,0.003,89972.0,89971.0,0.0897968]
[1765151043580,0.13038192,89981.0,89980.0,0.05763]
[1765151043787,0.05622,89981.0,89980.0,0.05763]
[1765151044987,0.05622,89974.0,89973.0,0.02984574]
[1765151045188,0.0673335,89973.0,89971.0,0.0411668]
[1765151045491,0.05622,89972.0,89971.0,0.0411668]
[1765151045687,0.05622,89972.0,89971.0,0.0051668]
[1765151046087,0.05622,89972.0,89971.0,0.0001668]
[1765151046585,0.05622,89972.0,89971.0,0.0331668]
[1765151046896,0.05622,89972.0,89971.0,0.0351668]
[1765151047691,0.05622,89972.0,89971.0,0.0927968]
[1765151048595,0.05622,89972.0,89971.0,0.0597968]
[1765151048893,0.05922,89972.0,89971.0,0.0897968]
[1765151052397,0.05922,89972.0,89971.0,0.0321668]
[1765151053191,0.05922,89972.0,89971.0,0.0888368]
[1765151057702,0.05922,89972.0,89971.0,0.129771]
[1765151058000,0.05922,89972.0,89971.0,0.0999506]
[1765151058990,0.05922,89972.0,89971.0,0.0888368]
[1765151060896,0.003,89972.0,89971.0,0.1186572]
[1765151061101,0.05781,89972.0,89971.0,0.1186572]
[1765151061798,0.0689236,89972.0,89971.0,0.1186572]
[1765151062003,0.0689236,89972.0,89971.0,0.0888368]
[1765151063098,0.0689236,89972.0,89971.0,0.0321668]
[1765151064803,0.0689236,89972.0,89971.0,0.0888368]
[1765151069202,0.05781,89972.0,89971.0,0.0888368]
[1765151071006,0.05781,89972.0,89971.0,0.0321668]
[1765151071311,0.05781,89972.0,89971.0,0.0614468]
[1765151071503,0.05781,89972.0,89971.0,0.0888368]
[1765151073313,0.05781,89972.0,89971.0,0.1186572]
[1765151073702,0.05781,89972.0,89971.0,0.0888368]
[1765151073905,0.05781,89972.0,89971.0,0.1186572]
[1765151078809,0.05781,89972.0,89971.0,0.0619872]
[1765151079314,0.05781,89972.0,89971.0,0.0321668]
[1765151080217,0.05781,89972.0,89971.0,0.0614468]
[1765151080711,0.05781,89972.0,89971.0,0.0888368]
[1765151081815,0.0301,89972.0,89971.0,0.0888368]
[1765151082011,0.0301,89972.0,89971.0,0.1186572]
[1765151082511,0.05791,89972.0,89971.0,0.1186572]
[1765151083415,0.05791,89972.0,89971.0,0.0888368]
[1765151083912,0.003,89972.0,89971.0,0.0999506]
[1765151087214,0.06056996,89981.0,89980.0,0.0684226]
[1765151087521,0.0401626,89981.0,89980.0,0.0684226]
[1765151087719,0.0679726,89981.0,89980.0,0.09822398]
[1765151088221,0.0679726,89981.0,89980.0,0.05731]
[1765151088520,0.0679726,89981.0,89980.0,0.06131]
[1765151089313,0.0719726,89981.0,89980.0,0.06131]
[1765151092214,0.0719726,89981.0,89980.0,0.03196]
[1765151092410,0.0719726,89981.0,89980.0,0.06131]
[1765151098525,0.06086,89981.0,89980.0,0.06131]
[1765151099931,0.06086,89981.0,89980.0,0.0841126]
[1765151100432,0.06086,89981.0,89980.0,0.06131]
[1765151101229,0.06086,89981.0,89980.0,0.0724226]
[1765151101418,0.004,89981.0,89980.0,0.0896326]
[1765151101824,0.004,89981.0,89980.0,0.12943767]
[1765151102030,0.004,89981.0,89980.0,0.0896326]
[1765151102231,0.004,89981.0,89980.0,0.12926228]
[1765151103135,0.004,89981.0,89980.0,0.0896326]
[1765151103725,0.004,89981.0,89980.0,0.12926228]
[1765151104127,0.0554368,89988.0,89987.0,0.0673318]
[1765151104626,0.0554368,89988.0,89987.0,0.05622]
[1765151105435,0.0594368,89988.0,89987.0,0.05622]
[1765151105826,0.0594368,89988.0,89987.0,0.05922]
[1765151108935,0.0041668,89988.0,89987.0,0.05922]
[1765151109645,0.0041668,89988.0,89987.0,0.0703318]
[1765151110435,0.0594368,89988.0,89987.0,0.0703318]
[1765151110733,0.0594368,89988.0,89987.0,0.05922]
[1765151111635,0.0594368,89988.0,89987.0,0.003]
[1765151111838,0.05761,89972.0,89971.0,0.0001668]
[1765151112036,0.0687236,89972.0,89971.0,0.0572868]
[1765151112738,0.05761,89972.0,89971.0,0.0572868]
[1765151113536,0.06061,89972.0,89971.0,0.0922868]
[1765151120550,0.03099,89972.0,89971.0,0.1034006]
[1765151122745,0.003,89972.0,89971.0,0.13314322]
[1765151123042,0.003,89972.0,89971.0,0.1034006]
[1765151123443,0.07417501,89990.0,89987.0,0.0682318]
[1765151123745,0.07417501,89997.0,89987.0,0.0682318]
[1765151124138,0.0577768,89988.0,89987.0,0.0682318]
[1765151125046,0.0577768,89988.0,89987.0,0.0702318]
[1765151130846,0.0577768,89988.0,89987.0,0.002]
[1765151131545,0.0577768,89988.0,89987.0,0.0316]
[1765151131744,0.0577768,89988.0,89987.0,0.002]
[1765151132350,0.0577768,89988.0,89987.0,0.0316]
[1765151132539,0.0577768,89988.0,89987.0,0.002]
[1765151133243,0.07522,89975.0,89974.0,0.03961588]
[1765151133443,0.05761,89972.0,89971.0,0.0572868]
[1765151134741,0.03099,89972.0,89971.0,0.0882868]
[1765151135248,0.06061,89972.0,89971.0,0.0882868]
[1765151135949,0.06061,89972.0,89971.0,0.0912868]
[1765151136144,0.05761,89972.0,89971.0,0.0602868]
[1765151136352,0.06061,89972.0,89971.0,0.0912868]
[1765151137651,0.06061,89972.0,89971.0,0.0637668]
[1765151138048,0.06061,89972.0,89971.0,0.0912868]
[1765151144956,0.06061,89972.0,89971.0,0.0341668]
[1765151147251,0.06061,89972.0,89971.0,0.0911268]
[1765151150961,0.03099,89972.0,89971.0,0.0911268]
[1765151152261,0.0720836,89972.0,89971.0,0.0911268]
[1765151157869,0.003,89972.0,89971.0,0.0911268]
[1765151159269,0.003,89972.0,89971.0,0.15083441]
[1765151159659,0.0001668,89988.0,89971.0,0.09387441]
[1765151159863,0.0001668,89988.0,89987.0,0.05582]
[1765151160363,0.0570068,89988.0,89987.0,0.0669318]
[1765151160957,0.0580068,89988.0,89987.0,0.0669318]
[1765151161371,0.0580068,89988.0,89987.0,0.05582]
[1765151161667,0.0580068,89988.0,89980.0,0.08557243]
[1765151161668,0.0679525,89981.0,89980.0,0.08557243]
[1765151162070,0.0679525,89981.0,89980.0,0.05582]
[1765151162264,0.0679525,89981.0,89980.0,0.08559425]
[1765151163062,0.0679525,89981.0,89980.0,0.06182]
[1765151163267,0.05684,89981.0,89980.0,0.06182]
[1765151165068,0.05684,89981.0,89980.0,0.09159632]
[1765151165779,0.0001668,89988.0,89987.0,0.0669318]
[1765151167073,0.0001668,89988.0,89987.0,0.0709318]
[1765151168166,0.07417501,89997.0,89994.0,0.01754]
[1765151168374,0.02877,90000.0,89999.0,0.05582]
[1765151168572,0.05684,90000.0,89999.0,0.05582]
[1765151168773,0.07325,90000.0,89999.0,0.05582]
[1765151169774,0.07425,90000.0,89999.0,0.05582]
[1765151170480,0.07425,90000.0,89999.0,0.02858]
[1765151170772,0.07425,90000.0,89999.0,0.05582]
[1765151170981,0.0679512,89992.0,89991.0,0.0559867]
[1765151172176,0.05684,89992.0,89991.0,0.0579867]
[1765151172377,0.20425002,90001.0,90000.0,0.05738]
[1765151172584,0.0559,90001.0,90000.0,0.05738]
[1765151173687,0.14835002,90010.0,89991.0,0.0706579]
[1765151173688,0.0559,89992.0,89991.0,0.0706579]
[1765151175681,0.0111106,89997.0,89991.0,0.0595467]
[1765151175984,0.10531915,90001.0,90000.0,0.0849402]
[1765151176187,0.0559,90001.0,90000.0,0.0849402]
[1765151176482,0.0272,90001.0,90000.0,0.0849402]
[1765151176783,0.0282,90001.0,90000.0,0.0849402]
[1765151177084,0.001,90001.0,90000.0,0.0849402]
[1765151177468,0.0569,90001.0,90000.0,0.0684902]
[1765151177669,0.0569,90001.0,90000.0,0.05738]
[1765151179278,0.001,90001.0,90000.0,0.07383]
[1765151179477,0.0282,90001.0,90000.0,0.07383]
[1765151179684,0.0569,90001.0,90000.0,0.07383]
[1765151180085,0.0569,90001.0,90000.0,0.05738]
[1765151192511,0.001,90001.0,90000.0,0.07383]
[1765151193018,0.0569,90001.0,90000.0,0.07383]
[1765151194406,0.0282,90001.0,90000.0,0.07383]
[1765151194916,0.0569,90001.0,90000.0,0.07383]
[1765151195614,0.0559,90001.0,90000.0,0.07883]
[1765151196718,0.05617776,90006.0,90005.0,0.0772596]
[1765151196906,0.05617776,90006.0,90005.0,0.0684896]
[1765151197106,0.05617776,90006.0,90005.0,0.05738]
[1765151199111,0.05617776,90006.0,90005.0,0.05938]
[1765151200518,0.05617776,90006.0,90005.0,0.0704896]
[1765151201609,0.00027776,90006.0,90005.0,0.0869396]
[1765151202117,0.11565695,90020.0,90019.0,0.05558]
[1765151202417,0.0662378,90020.0,90019.0,0.05558]
[1765151203220,0.0869478,90020.0,90019.0,0.05558]
[1765151207017,0.0692378,90020.0,90019.0,0.05558]
[1765151208222,0.05813,90020.0,90019.0,0.05558]
[1765151208421,0.003,90020.0,90019.0,0.05558]
[1765151209420,0.05813,90020.0,90019.0,0.05558]
[1765151209727,0.05513,90020.0,90019.0,0.05758]
[1765151213418,0.02742,90020.0,90019.0,0.05758]
[1765151213728,0.05513,90020.0,90019.0,0.05758]
[1765151214524,0.0664033,90029.0,90028.0,0.05558]
[1765151214727,0.0001667,90029.0,90028.0,0.05558]
[1765151214926,0.0662349,90043.0,90042.0,0.05558]
[1765151215130,0.0662349,90043.0,90035.0,0.01641]
[1765151215131,0.05540764,90046.0,90045.0,0.07199]
[1765151215521,0.05540764,90046.0,90045.0,0.05558]
[1765151217419,0.05740764,90046.0,90045.0,0.05558]
[1765151220024,0.05836,90038.0,90037.0,0.0695055]
[1765151221438,0.0694655,90038.0,90037.0,0.0584]
[1765151221632,0.0694655,90038.0,90037.0,0.0594]
[1765151221832,0.05836,90038.0,90037.0,0.0594]
[1765151222331,0.05863764,90046.0,90045.0,0.0584]
[1765151223237,0.05863764,90046.0,90045.0,0.0695046]
[1765151223433,0.06974214,90046.0,90045.0,0.0584]
[1765151223637,0.07492,90042.0,90041.0,0.069505]
[1765151224134,0.05836,90042.0,90041.0,0.069505]
[1765151224637,0.07249,90042.0,90041.0,0.02963]
[1765151225028,0.05836,90037.0,90036.0,0.0696722]
[1765151227338,0.05836,90042.0,90036.0,0.0119166]
[1765151227534,0.05836,90042.0,90041.0,0.0695051]
[1765151227833,0.05863764,90046.0,90045.0,0.0695046]
[1765151230041,0.06063764,90046.0,90045.0,0.0695046]
[1765151230728,0.06063764,90046.0,90045.0,0.0584]
[1765151230928,0.06063764,90046.0,90045.0,0.02963]
[1765151231130,0.07492,90042.0,90041.0,0.069505]
[1765151231936,0.05836,90042.0,90041.0,0.069505]
[1765151232435,0.02996,90042.0,90041.0,0.069505]
[1765151232642,0.06128764,90046.0,90045.0,0.0663146]
[1765151232942,0.00227764,90046.0,90045.0,0.0663146]
[1765151233333,0.03025764,90046.0,90045.0,0.0663146]
[1765151233832,0.05928764,90046.0,90045.0,0.0663146]
[1765151234032,0.06128764,90046.0,90045.0,0.0663146]
[1765151234633,0.06128764,90046.0,90045.0,0.0703146]
[1765151236334,0.06228764,90046.0,90045.0,0.1023146]
[1765151245750,0.03325764,90046.0,90045.0,0.1191046]
[1765151245952,0.06228764,90046.0,90045.0,0.1191046]
[1765151246649,0.06228764,90046.0,90045.0,0.1023146]
[1765151253154,0.06228764,90046.0,90045.0,0.1191046]
[1765151254652,0.00011056,90055.0,90054.0,0.0663135]
[1765151254957,0.02998,90063.0,90062.0,0.0663125]
[1765151255454,0.05901,90068.0,90067.0,0.0663119]
[1765151255655,0.05901,90072.0,90071.0,0.0663114]
[1765151256752,0.05901,90077.0,90076.0,0.0663108]
[1765151257857,0.05901,90077.0,90075.0,0.01679]
[1765151257858,0.1441439,90086.0,90085.0,0.05521]
[1765151258050,0.0701096,90086.0,90085.0,0.05521]
[1765151259746,0.05901,90086.0,90085.0,0.05521]
[1765151260557,0.05901,90095.0,90094.0,0.0663086]
[1765151260749,0.218176,90104.0,90103.0,0.05521]
[1765151260947,0.05901,90095.0,90094.0,0.0663085]
[1765151261758,0.06301,90095.0,90094.0,0.0663085]
[1765151262164,0.05901,90095.0,90094.0,0.0663085]
[1765151262759,0.0110974,90104.0,90103.0,0.05766]
[1765151263065,0.05905,90104.0,90103.0,0.05766]
[1765151263473,0.0174,90114.0,90102.0,0.01768]
[1765151263474,0.02981,90114.0,90113.0,0.05766]
[1765151263660,0.1330843,90120.0,90119.0,0.05766]
[1765151263964,0.05905,90120.0,90119.0,0.05766]
[1765151265366,0.05905,90115.0,90114.0,0.05766]
[1765151266760,0.070146,90115.0,90114.0,0.05766]
[1765151267555,0.002,90120.0,90119.0,0.05766]
[1765151267755,0.07565,90120.0,90119.0,0.05766]
[1765151268866,0.07665,90120.0,90119.0,0.07866]
[1765151269957,0.07665,90120.0,90119.0,0.021]
[1765151270159,0.07665,90120.0,90119.0,0.07866]
[1765151274965,0.06005,90120.0,90119.0,0.07866]
[1765151275465,0.07665,90120.0,90119.0,0.07866]
[1765151277869,0.06005,90120.0,90119.0,0.0897555]
[1765151279066,0.06005,90120.0,90119.0,0.07866]
[1765151281056,0.0887254,90120.0,90119.0,0.021]
[1765151281262,0.0887254,90120.0,90119.0,0.04943]
[1765151281461,0.0887254,90120.0,90119.0,0.0769]